bitfinex/quotes_ETHUSD_20250605
["timestamp","ask_amount","ask_price","bid_price","bid_amount"]
[1749144763829,41.61707814,2572.9,2572.8,3.88681592]
[1749144764146,30.0,2572.8,2572.6,3.88702046]
[1749144764446,30.36359738,2572.7,2572.6,3.88702046]
[1749144764643,30.0,2572.7,2572.6,3.88702046]
[1749144764882,30.36359802,2572.7,2572.6,3.88702046]
[1749144765054,30.36359823,2572.7,2572.6,3.88702046]
[1749144765208,30.8176,2572.9,2572.8,3.88681592]
[1749144765413,30.8176,2572.9,2572.7,3.8869411]
[1749144765414,41.7161695,2572.9,2572.7,3.88688762]
[1749144765611,0.3635695,2572.8,2572.6,3.88706798]
[1749144765940,30.0,2572.8,2572.7,3.88696699]
[1749144766105,30.36322194,2572.8,2572.7,3.88696699]
[1749144766444,30.8176,2572.9,2572.8,3.88681592]
[1749144766612,37.3516,2572.9,2572.8,3.88681592]
[1749144766816,37.71480392,2572.9,2572.8,3.88681592]
[1749144767026,37.3516,2572.9,2572.8,3.88681592]
[1749144767242,37.71481174,2572.9,2572.8,3.88681592]
[1749144767747,37.71481483,2572.9,2572.8,3.88681592]
[1749144767962,37.3516,2572.9,2572.8,3.88681592]
[1749144769220,37.71480937,2572.9,2572.8,3.88681592]
[1749144769461,30.8176,2572.9,2572.8,3.88681592]
[1749144769664,30.0,2573.0,2572.9,3.88666485]
[1749144769958,30.7522,2573.1,2573.0,3.88651379]
[1749144770134,41.2862,2573.1,2573.0,3.88651379]
[1749144770335,34.7522,2573.1,2573.0,3.88651379]
[1749144770532,41.64943527,2573.1,2573.0,3.88651379]
[1749144770740,41.64943236,2573.1,2573.0,3.88651379]
[1749144771138,37.64943236,2573.1,2573.0,3.88651379]
[1749144771338,30.0,2573.0,2572.9,3.88658561]
[1749144771864,36.534,2573.0,2572.9,3.88658561]
[1749144772545,36.89724918,2573.0,2572.9,3.88658561]
[1749144773059,36.89734976,2573.0,2572.9,3.88658561]
[1749144773240,36.534,2573.0,2572.9,3.88658561]
[1749144773440,30.0,2572.9,2572.8,3.88673468]
[1749144773622,30.0,2572.9,2572.6,3.88698371]
[1749144773822,40.0,2572.7,2572.6,3.88698371]
[1749144774066,36.534,2572.7,2572.6,3.88698371]
[1749144775965,36.533,2572.7,2572.6,3.88698371]
[1749144776968,30.0,2572.9,2572.8,3.88681592]
[1749144777167,40.533,2572.9,2572.8,3.88681592]
[1749144778131,36.533,2572.9,2572.8,3.88681592]
[1749144780266,36.533,2572.9,2572.4,16.0]
[1749144780586,30.0,2572.7,2572.6,3.88711809]
[1749144780744,0.8254,2573.0,2572.9,3.88666485]
[1749144781074,37.72084302,2573.0,2572.9,3.88666485]
[1749144781241,30.36344302,2573.0,2572.9,3.88666485]
[1749144781632,30.0,2573.1,2573.0,3.88651379]
[1749144781888,36.8954172,2573.1,2573.0,3.88651379]
[1749144782097,0.7568,2573.4,2573.0,3.88651379]
[1749144782231,30.0,2573.2,2573.1,3.88625977]
[1749144782435,30.36338919,2573.2,2573.1,3.88625977]
[1749144782674,0.7568,2573.4,2573.3,3.8860607]
[1749144782880,38.0156267,2573.4,2573.3,3.8860607]
[1749144783175,37.2888,2573.4,2573.3,3.8860607]
[1749144783744,30.0,2573.3,2573.1,3.88623414]
[1749144783945,30.0,2573.3,2573.0,3.88642499]
[1749144784163,30.0,2573.3,2572.4,1.756]
[1749144784164,0.8086,2573.0,2572.9,3.88663293]
[1749144784497,30.0,2572.9,2572.5,3.8872615]
[1749144784701,39.80713107,2572.8,2572.2,0.487]
[1749144784917,30.0,2572.6,2572.5,3.8872594]
[1749144785861,30.0,2572.6,2572.0,1.756]
[1749144786067,30.0,2572.6,2572.3,3.88757143]
[1749144786272,30.0,2572.6,2572.4,3.88733775]
[1749144786757,40.0,2572.4,2572.3,3.88749714]
[1749144786958,6.531,2572.4,2572.3,3.88749714]
[1749144787206,30.0,2572.6,2572.4,3.8874203]
[1749144787496,30.0,2572.6,2572.5,3.88726919]
[1749144787698,34.72762145,2572.6,2572.5,3.88726919]
[1749144787868,40.89481407,2572.6,2572.5,3.88726919]
[1749144788066,4.0,2572.6,2572.5,3.88726919]
[1749144788265,10.531,2572.6,2572.5,3.88726919]
[1749144788463,10.894804,2572.6,2572.5,3.88726919]
[1749144788662,10.531,2572.6,2572.5,3.88726919]
[1749144789303,41.69762961,2572.6,2572.5,3.88726919]
[1749144789508,30.0,2572.5,2572.4,3.88733581]
[1749144789665,30.0,2572.5,2572.0,1.756]
[1749144789666,43.80713107,2572.5,2572.0,1.756]
[1749144790005,30.0,2572.3,2571.7,0.487]
[1749144790174,40.0,2572.1,2572.0,3.88802488]
[1749144790377,30.0,2572.1,2572.0,3.88802488]
[1749144790969,4.0,2572.5,2572.4,3.8874203]
[1749144791196,41.63044191,2572.5,2572.4,3.8874203]
[1749144791382,34.72718735,2572.5,2572.4,3.8874203]
[1749144791577,4.0,2572.5,2572.4,4.66491947]
[1749144791804,10.531,2572.5,2572.4,4.66491947]
[1749144793206,6.531,2572.5,2572.4,3.8874203]
[1749144794765,30.37219778,2573.1,2573.0,3.88651379]
[1749144795049,40.90319778,2573.1,2573.0,3.88651379]
[1749144795250,30.0,2573.0,2572.3,0.487]
[1749144795415,30.0,2573.0,2572.7,3.8868838]
[1749144795610,40.0,2572.8,2572.7,3.88689211]
[1749144795954,40.53,2572.8,2572.7,3.88689211]
[1749144796308,40.89346826,2572.8,2572.7,3.88689211]
[1749144796513,40.53,2572.8,2572.7,3.88689211]
[1749144796858,4.0,2572.8,2572.7,3.88689211]
[1749144797011,10.53,2572.8,2572.7,4.66429307]
[1749144797214,4.0,2572.8,2572.7,4.66429307]
[1749144797409,10.53,2572.8,2572.7,4.66429307]
[1749144797712,10.53,2572.8,2572.7,3.88689211]
[1749144798647,30.0,2572.7,2572.6,3.88711809]
[1749144798874,4.0,2572.7,2572.6,3.88711809]
[1749144799073,10.53,2572.7,2572.6,3.88711809]
[1749144799453,6.53,2572.7,2572.6,3.88711809]
[1749144800954,10.53,2572.7,2572.6,3.88711809]
[1749144801737,40.53,2572.7,2572.6,3.88711809]
[1749144802755,30.0,2572.6,2572.4,3.88734748]
[1749144803261,30.0,2572.6,2572.2,3.88767813]
[1749144803465,40.0,2572.4,2572.0,21.64397604]
[1749144803773,36.529,2572.3,2572.2,3.88772257]
[1749144804668,36.529,2572.3,2572.1,3.88787372]
[1749144804669,30.0,2572.2,2572.1,3.88787372]
[1749144805153,0.7838,2572.4,2572.2,3.88772257]
[1749144805358,6.528,2572.3,2572.2,3.88772257]
[1749144807346,34.0,2572.5,2572.4,3.8874203]
[1749144807552,40.528,2572.5,2572.4,3.8874203]
[1749144811479,4.0,2572.5,2572.4,4.66491628]
[1749144811681,10.528,2572.5,2572.4,4.66491628]
[1749144812193,4.0,2572.5,2572.4,3.8874203]
[1749144812493,10.527,2572.5,2572.4,3.8874203]
[1749144812663,4.0,2572.5,2572.4,3.8874203]
[1749144812862,40.527,2572.5,2572.4,3.8874203]
[1749144813279,36.527,2572.5,2572.4,3.8874203]
[1749144813592,6.527,2572.5,2572.4,3.8874203]
[1749144813811,6.527,2572.5,2572.4,4.66491628]
[1749144816074,6.527,2572.5,2572.4,3.8874203]
[1749144816582,30.0,2572.4,2571.6,2.239]
[1749144816904,30.0,2572.4,2572.2,3.88765499]
[1749144817095,7.312,2572.5,2572.2,3.88765499]
[1749144817096,30.0,2572.3,2572.2,3.88765499]
[1749144817308,0.3638223,2572.3,2572.2,3.88765499]
[1749144817568,30.73632362,2572.3,2572.2,3.88765499]
[1749144817691,30.0,2572.2,2572.1,3.88778538]
[1749144817898,36.88970275,2572.2,2572.1,3.88778538]
[1749144818212,36.88969682,2572.2,2572.1,3.88778538]
[1749144818515,36.526,2572.2,2572.1,3.88778538]
[1749144819079,36.88970341,2572.2,2572.1,3.88778538]
[1749144819508,6.526,2572.2,2572.1,3.88778538]
[1749144819717,10.526,2572.2,2572.1,3.88778538]
[1749144821484,40.526,2572.2,2572.1,3.88778538]
[1749144822728,40.8896097,2572.2,2572.1,3.88778538]
[1749144822927,40.526,2572.2,2572.1,3.88778538]
[1749144823420,10.526,2572.2,2572.1,3.88778538]
[1749144823928,40.526,2572.2,2572.1,3.88778538]
[1749144825199,34.0,2572.2,2572.1,3.88778538]
[1749144825397,40.525,2572.2,2572.1,3.88778538]
[1749144826220,41.2977,2572.2,2572.1,3.88778538]
[1749144826420,41.66133621,2572.2,2572.1,3.88778538]
[1749144826724,41.2977,2572.2,2572.1,3.88778538]
[1749144826944,41.2977,2572.2,2571.6,17.752]
[1749144826945,45.19861672,2572.2,2571.6,17.752]
[1749144827088,45.19861672,2572.2,2571.4,0.487]
[1749144827089,30.0,2572.1,2571.7,3.88841563]
[1749144827287,30.0,2571.9,2571.8,3.88821512]
[1749144827532,8.67361672,2572.2,2571.7,3.88844604]
[1749144827533,30.0,2572.1,2572.0,3.88802488]
[1749144827690,6.88865598,2572.1,2572.0,3.88802488]
[1749144828010,4.0,2572.2,2572.1,4.43787372]
[1749144828442,30.0,2572.7,2572.6,3.88711809]
[1749144828583,36.525,2572.7,2572.6,3.88711809]
[1749144828801,36.525,2572.7,2572.4,3.88734591]
[1749144828802,30.0,2572.6,2572.4,3.88734591]
[1749144829028,30.0,2572.6,2572.5,3.88725318]
[1749144829246,30.36357938,2572.6,2572.5,3.88725318]
[1749144829601,30.36357938,2572.6,2572.2,3.88765615]
[1749144829927,30.36364002,2572.5,2572.4,3.88735688]
[1749144830129,30.3636378,2572.5,2572.4,3.88735688]
[1749144830305,6.525,2572.7,2572.3,3.88748687]
[1749144830306,30.0,2572.6,2572.3,3.88748687]
[1749144830501,6.524,2572.5,2572.2,16.0]
[1749144830707,6.524,2572.5,2572.4,3.8874203]
[1749144831007,36.524,2572.5,2572.4,3.8874203]
[1749144832128,30.0,2572.4,2572.3,3.88748604]
[1749144834537,0.7601,2572.8,2572.7,3.88696699]
[1749144834696,37.6555237,2572.8,2572.7,3.88696699]
[1749144834890,31.49624377,2572.8,2572.7,3.88696699]
[1749144835128,37.6555237,2572.8,2572.7,3.88696699]
[1749144835505,38.01918481,2572.8,2572.7,3.88696699]
[1749144835932,31.49618481,2572.8,2572.7,3.88696699]
[1749144836118,37.6555237,2572.8,2572.7,3.88696699]
[1749144836335,38.01917893,2572.8,2572.7,3.88696699]
[1749144836543,30.73607696,2572.8,2572.7,3.88696699]
[1749144836855,30.0,2572.9,2572.8,3.88681592]
[1749144837162,30.0,2572.9,2572.7,3.88696699]
[1749144837163,40.33635475,2572.9,2572.7,3.88690176]
[1749144837331,30.3723596,2572.8,2572.7,3.88690176]
[1749144837535,3.07736,2572.9,2572.8,3.88681592]
[1749144837756,6.89532619,2572.9,2572.7,3.88689402]
[1749144837936,0.36358521,2572.8,2572.7,3.88689402]
[1749144838122,6.523,2572.9,2572.7,3.88689402]
[1749144838316,6.523,2572.8,2572.7,3.88689402]
[1749144838517,6.88558733,2572.8,2572.7,3.88689402]
[1749144838749,6.522,2572.8,2572.7,3.88689402]
[1749144839137,36.522,2572.8,2572.7,3.88689402]
[1749144839340,36.88551701,2572.8,2572.7,3.88689402]
[1749144839747,36.522,2572.8,2572.7,3.88689402]
[1749144839932,36.88552014,2572.8,2572.7,3.88689402]
[1749144840132,36.522,2572.8,2572.7,3.88689402]
[1749144840333,36.88551975,2572.8,2572.7,3.88689402]
[1749144840750,0.36351975,2572.8,2572.7,3.88689402]
[1749144840951,6.522,2572.8,2572.7,3.88689402]
[1749144842036,0.37221429,2573.0,2572.9,3.88666485]
[1749144842239,0.36345002,2573.0,2572.9,3.88666485]
[1749144842423,40.0,2573.1,2573.0,3.88651379]
[1749144842760,30.36329853,2573.1,2573.0,3.88651379]
[1749144842916,30.36329812,2573.1,2573.0,3.88651379]
[1749144843122,36.8842969,2573.1,2572.9,3.88657345]
[1749144843334,36.8842969,2573.1,2572.2,0.487]
[1749144843335,34.71382432,2573.0,2572.2,0.487]
[1749144843579,30.0,2572.5,2572.3,3.88757143]
[1749144843838,30.0,2572.3,2572.2,3.88761323]
[1749144844221,30.0,2572.3,2572.1,3.88781036]
[1749144844421,40.0,2572.1,2572.0,3.88788134]
[1749144844663,40.0,2572.1,2571.6,1.749]
[1749144844664,30.0,2572.0,2571.6,1.749]
[1749144844976,30.0,2571.9,2571.8,3.88826003]
[1749144845382,30.0,2572.0,2571.6,1.749]
[1749144845675,30.0,2572.0,2571.8,3.88823551]
[1749144845676,36.52,2571.9,2571.8,3.88823551]
[1749144845841,16.52,2571.9,2571.8,3.88823551]
[1749144846024,6.52,2571.9,2571.8,3.88823551]
[1749144846465,16.52,2571.9,2571.8,3.88823551]
[1749144846762,6.52,2571.9,2571.8,3.88823551]
[1749144847324,16.52,2571.9,2571.8,3.88823551]
[1749144847625,0.8234,2572.1,2571.7,3.88845154]
[1749144847626,30.0,2572.1,2572.0,3.88802488]
[1749144847747,6.52,2572.1,2572.0,3.88802488]
[1749144848062,16.52,2572.1,2572.0,3.88802488]
[1749144848249,6.52,2572.1,2572.0,3.88802488]
[1749144849025,0.8148,2572.3,2572.2,3.88772257]
[1749144849226,7.3348,2572.3,2572.2,3.88772257]
[1749144850098,7.3348,2572.3,2571.8,3.88832724]
[1749144850099,17.91801283,2572.3,2571.8,3.88832724]
[1749144850283,0.36322706,2572.2,2572.1,3.88787372]
[1749144850568,18.29010413,2572.3,2572.1,3.88779672]
[1749144850569,17.91801283,2572.3,2572.1,3.88779672]
[1749144850727,8.10548913,2572.3,2572.2,3.88772257]
[1749144850931,8.46867769,2572.3,2572.2,3.88772257]
[1749144851129,1.1795913,2572.5,2572.3,3.88750248]
[1749144851430,6.88312489,2572.4,2571.8,0.55]
[1749144851661,6.8920913,2572.4,2572.2,3.88771176]
[1749144851859,0.3720913,2572.4,2572.3,3.88757143]
[1749144852031,0.36315392,2572.4,2572.3,3.88757143]
[1749144852231,0.37195993,2572.6,2572.5,3.88726919]
[1749144852432,0.36311741,2572.6,2572.5,3.88726919]
[1749144852658,6.52,2572.6,2572.5,3.88726919]
[1749144853070,10.4198,2572.7,2572.6,3.88711809]
[1749144853265,16.9398,2572.7,2572.5,3.88718785]
[1749144853571,0.37193209,2572.8,2572.7,3.88696699]
[1749144853788,0.36309353,2572.8,2572.7,3.88696699]
[1749144853968,6.52,2572.8,2572.7,3.88696699]
[1749144854482,6.52,2572.8,2572.6,3.8870882]
[1749144855236,6.52,2572.8,2572.5,3.88721697]
[1749144855449,6.52,2572.8,2572.1,0.487]
[1749144855450,0.7804,2572.7,2572.1,0.487]
[1749144855587,17.44668821,2572.8,2572.1,0.487]
[1749144855588,6.52,2572.8,2572.6,3.88711809]
[1749144855788,0.36307303,2572.8,2572.7,3.88689933]
[1749144855997,6.519,2572.8,2572.7,3.88689933]
[1749144856220,6.519,2572.8,2572.5,3.8872197]
[1749144856421,7.67478546,2572.8,2572.5,3.8872197]
[1749144856628,7.67478546,2572.8,2572.6,3.88708405]
[1749144857324,1.15233209,2572.9,2572.7,3.88696699]
[1749144857524,6.519,2572.7,2572.6,3.8869954]
[1749144857827,6.519,2572.7,2572.5,3.88719358]
[1749144859192,7.32244506,2572.7,2572.1,4.37486821]
[1749144859434,7.32244506,2572.7,2572.4,3.88730159]
[1749144859612,0.7864,2572.6,2572.0,0.55]
[1749144859816,9.8125237,2572.5,2571.9,0.487]
[1749144860015,9.8125237,2572.5,2571.7,3.88846061]
[1749144860016,9.8125237,2572.5,2572.1,3.88779465]
[1749144860202,5.04553218,2572.6,2572.1,3.88779465]
[1749144860203,0.7576,2572.8,2572.5,3.88726919]
[1749144860529,6.88109668,2572.7,2572.4,3.88736408]
[1749144860726,6.88109668,2572.7,2572.2,3.88760314]
[1749144860727,1.12694796,2572.6,2572.2,3.88760314]
[1749144860929,1.12694796,2572.6,2571.9,0.487]
[1749144860930,0.76386967,2572.6,2572.3,3.88747939]
[1749144861101,0.76386967,2572.6,2572.0,0.55]
[1749144861305,0.76386967,2572.6,2572.4,3.88729749]
[1749144861494,0.76538143,2572.5,2572.4,3.88729749]
[1749144861893,0.76538143,2572.5,2572.3,3.88752255]
[1749144862213,0.7518,2572.4,2572.2,3.88767326]
[1749144862391,6.518,2572.3,2572.2,3.88767326]
[1749144862827,6.518,2572.3,2572.1,3.88781592]
[1749144863028,6.518,2572.3,2572.0,3.88798161]
[1749144863029,6.518,2572.3,2572.2,3.88772257]
[1749144863226,6.518,2572.3,2572.0,3.88797128]
[1749144863227,7.35871261,2572.3,2572.1,3.88783207]
[1749144864032,7.35871261,2572.3,2572.0,3.88798536]
[1749144864331,17.17123631,2572.3,2571.9,3.8881082]
[1749144864507,17.54318094,2572.3,2571.9,3.8881082]
[1749144864693,2.21825382,2572.2,2571.9,3.8881082]
[1749144864894,13.70055873,2572.0,2571.5,3.88875445]
[1749144865098,6.517,2571.9,2571.6,3.88855287]
[1749144865319,6.517,2571.9,2571.7,3.88837708]
[1749144865499,11.96699291,2571.9,2571.6,3.88851178]
[1749144865696,11.96699291,2571.9,2571.7,3.88839843]
[1749144866136,1.16943078,2572.1,2571.9,3.88817605]
[1749144866137,0.7975,2572.1,2571.9,3.88817605]
[1749144866297,6.517,2572.0,2571.9,4.43817605]
[1749144866935,6.517,2572.0,2571.8,3.88821492]
[1749144867233,0.7666,2571.8,2571.2,0.55]
[1749144867531,6.517,2571.7,2571.6,3.88862964]
[1749144871939,0.815,2571.6,2571.5,3.88878086]
[1749144872239,6.517,2571.6,2571.5,3.88878086]
[1749144873441,6.517,2571.6,2571.1,2.0722861]
[1749144873442,7.2502,2571.6,2571.1,2.0722861]
[1749144874313,6.517,2571.6,2571.4,3.88887333]
[1749144874512,6.517,2571.6,2571.1,2.0722861]
[1749144874725,6.517,2571.6,2571.2,3.88913043]
[1749144874930,6.517,2571.6,2571.4,3.88886438]
[1749144875247,6.517,2571.6,2571.3,3.8890684]
[1749144875443,6.517,2571.6,2571.4,3.8888698]
[1749144875955,8.26889409,2571.6,2571.4,3.8888698]
[1749144876153,8.26889409,2571.6,2571.3,3.88900173]
[1749144876323,8.26889409,2571.6,2571.2,3.88914749]
[1749144876324,0.7943,2571.5,2571.2,3.88914749]
[1749144876522,0.7943,2571.5,2571.4,3.88893209]
[1749144876847,0.7943,2571.5,2571.2,3.88917625]
[1749144877044,0.7943,2571.5,2571.3,3.88894563]
[1749144877810,0.7943,2571.5,2571.2,3.88917625]
[1749144878429,0.7943,2571.5,2571.4,3.88893209]
[1749144878656,0.7943,2571.5,2571.3,3.88900042]
[1749144878836,1.52543,2571.5,2571.3,3.88900042]
[1749144879424,1.52543,2571.5,2571.2,3.88917135]
[1749144879960,1.52543,2571.5,2571.2,3.88916361]
[1749144880455,1.52543,2571.5,2571.1,0.02]
[1749144880681,9.81523226,2571.3,2571.1,0.02]
[1749144880969,11.21103459,2571.2,2571.1,0.02]
[1749144881324,11.58235181,2571.2,2571.1,0.02]
[1749144881719,11.94509645,2571.2,2571.1,0.02]
[1749144881951,11.94497847,2571.2,2571.1,0.02]
[1749144882153,14.22771417,2571.2,2571.1,0.02]
[1749144882756,13.85639695,2571.2,2571.1,0.02]
[1749144887669,18.21877648,2571.2,2571.1,0.02]
[1749144887823,17.85639695,2571.2,2571.1,0.02]
[1749144888579,33.85639695,2571.2,2571.1,0.02]
[1749144888869,33.85639695,2571.2,2570.1,0.507]
[1749144888870,9.81523226,2570.5,2570.1,3.91083198]
[1749144889096,0.8173,2570.3,2570.1,0.02]
[1749144889382,4.7250104,2570.2,2570.1,0.02]
[1749144890076,8.7250104,2570.2,2570.1,0.02]
[1749144890390,8.7250104,2570.2,2570.1,3.91089918]
[1749144891078,8.7250104,2570.2,2570.1,0.02]
[1749144891583,8.7250104,2570.2,2570.1,3.91089918]
[1749144892084,8.7250104,2570.2,2570.1,0.02]
[1749144892291,10.85464234,2570.2,2570.1,0.02]
[1749144892577,10.85464234,2570.2,2570.1,3.91089918]
[1749144892942,8.7250104,2570.2,2570.1,0.02]
[1749144893139,15.2430104,2570.2,2570.1,3.91089918]
[1749144893454,15.2430104,2570.2,2570.1,0.02]
[1749144893777,15.2430104,2570.2,2570.1,3.91089918]
[1749144894079,15.2430104,2570.2,2570.1,0.02]
[1749144894785,15.2430104,2570.2,2570.1,3.91089918]
[1749144895576,15.2430104,2570.2,2570.1,0.02]
[1749144895781,15.2430104,2570.2,2570.1,3.91089918]
[1749144896870,15.2430104,2570.2,2570.1,0.02]
[1749144897065,17.37264234,2570.2,2570.1,3.91089918]
[1749144897280,17.37264234,2570.2,2570.1,0.02]
[1749144900566,56.78660054,2570.2,2570.1,0.02]
[1749144900772,57.15758604,2570.2,2570.1,0.02]
[1749144900967,81.42012299,2570.2,2570.1,0.02]
[1749144901187,81.05758604,2570.2,2570.1,0.02]
[1749144901783,76.33257564,2570.2,2570.1,0.02]
[1749144901952,80.42457564,2570.2,2570.1,0.02]
[1749144902147,76.33257564,2570.2,2570.1,0.02]
[1749144902785,76.91290777,2570.2,2570.1,0.02]
[1749144902981,81.63791817,2570.2,2570.1,0.02]
[1749144903167,84.43832138,2570.2,2570.1,0.02]
[1749144903569,83.85798925,2570.2,2570.1,0.02]
[1749144903895,83.85798925,2570.2,2569.1,0.507]
[1749144903896,3.89226218,2569.2,2569.1,0.02]
[1749144904194,52.41638298,2569.2,2569.1,0.02]
[1749144904378,77.0503276,2569.2,2569.1,0.02]
[1749144904687,81.69094474,2569.2,2569.1,0.02]
[1749144905096,85.11015762,2569.2,2569.1,0.02]
[1749144905394,0.8019,2568.5,2568.1,0.02]
[1749144905595,4.7250104,2568.2,2568.1,0.02]
[1749144905765,11.2430104,2568.4,2568.3,3.89362613]
[1749144906149,0.8259,2568.7,2568.1,0.02]
[1749144906363,4.7250104,2568.4,2568.1,3.9138968]
[1749144906576,4.7250104,2568.2,2568.1,0.02]
[1749144906955,7.02510144,2568.2,2568.1,0.02]
[1749144907167,16.45788958,2568.2,2568.1,0.02]
[1749144907386,17.73891264,2568.2,2568.1,0.02]
[1749144907582,0.38223875,2568.5,2568.1,0.02]
[1749144907583,0.7904,2568.5,2568.1,0.02]
[1749144907759,1.745,2568.5,2568.4,3.89347453]
[1749144908088,8.264,2568.5,2568.2,3.89369753]
[1749144908263,8.264,2568.5,2568.3,3.89361494]
[1749144908450,11.00837454,2568.7,2568.3,3.89361154]
[1749144908654,11.00837454,2568.7,2568.2,3.89373514]
[1749144908655,4.0,2568.4,2568.2,3.89373514]
[1749144908987,4.0,2568.4,2568.3,3.89362613]
[1749144909194,10.521,2568.4,2568.3,3.89362613]
[1749144909689,4.0,2568.4,2568.3,3.89362613]
[1749144909856,10.52,2568.4,2568.3,3.89362613]
[1749144910051,4.0,2568.4,2568.3,3.89362613]
[1749144910255,10.52,2568.4,2568.3,3.89362613]
[1749144914616,10.52,2568.4,2568.1,0.02]
[1749144914617,16.36836284,2568.4,2568.1,0.02]
[1749144914924,9.84836284,2568.7,2568.5,3.89332238]
[1749144915116,10.52,2568.6,2568.5,3.89332238]
[1749144915620,10.52,2568.6,2568.3,0.487]
[1749144915808,10.52,2568.6,2568.3,4.3805743]
[1749144915983,10.52,2568.6,2568.4,3.89337062]
[1749144916177,6.52,2568.5,2568.4,3.89337062]
[1749144916420,10.52,2568.5,2568.4,3.89337062]
[1749144917228,4.0,2568.5,2568.4,3.89337062]
[1749144917399,10.52,2568.5,2568.4,3.89337062]
[1749144918029,10.52,2568.5,2568.2,3.89370423]
[1749144918242,4.0,2568.4,2568.1,3.91390041]
[1749144918384,4.0,2568.4,2568.2,3.89377773]
[1749144918581,4.0,2568.4,2568.3,3.89362613]
[1749144919246,4.0,2568.4,2568.1,0.02]
[1749144919388,5.23755,2568.4,2568.2,3.89371002]
[1749144919592,5.45627505,2568.4,2568.2,3.89371002]
[1749144919830,5.23755,2568.4,2568.3,3.89362613]
[1749144920049,10.52,2568.4,2568.3,3.89362613]
[1749144920533,10.52,2568.4,2568.1,0.02]
[1749144920695,10.66086284,2568.3,2568.1,3.91379701]
[1749144920894,4.0,2568.2,2568.1,3.91379701]
[1749144922540,4.0,2568.2,2568.1,0.02]
[1749144922902,4.0,2568.2,2568.1,3.91392936]
[1749144923822,10.52,2568.2,2568.1,3.91392936]
[1749144924339,10.52,2568.2,2568.1,0.02]
[1749144924638,11.76847111,2568.2,2568.1,3.91392936]
[1749144925601,5.24847111,2568.2,2568.1,3.91392936]
[1749144925798,10.52,2568.2,2568.1,3.91392936]
[1749144926818,4.0,2568.2,2568.1,3.91392936]
[1749144927143,10.52,2568.2,2568.1,3.91392936]
[1749144927841,4.0,2568.2,2568.1,4.95092936]
[1749144928012,10.52,2568.2,2568.1,4.95092936]
[1749144928336,10.52,2568.2,2568.1,4.40092936]
[1749144928541,10.52,2568.2,2568.1,4.95092936]
[1749144928739,10.52,2568.2,2568.1,4.40092936]
[1749144929233,4.0,2568.2,2568.1,4.95092936]
[1749144929438,10.52,2568.2,2568.1,4.40092936]
[1749144929654,4.0,2568.2,2568.1,5.78043026]
[1749144929958,4.0,2568.2,2568.1,21.78043026]
[1749144930305,0.61691469,2569.6,2568.1,21.78043026]
[1749144930306,0.7899,2569.6,2569.4,3.89185488]
[1749144930469,0.218601,2569.6,2569.5,3.89180774]
[1749144930612,0.37181057,2569.6,2569.5,3.89180774]
[1749144930813,0.37181057,2569.9,2569.8,3.89135341]
[1749144931061,6.52,2569.9,2569.8,3.89135341]
[1749144931349,0.37137534,2570.2,2570.1,3.89081135]
[1749144931852,6.89137534,2570.2,2570.1,3.89081135]
[1749144932060,6.52,2570.2,2570.1,3.89081135]
[1749144932620,0.37124442,2570.3,2570.2,3.8907478]
[1749144932869,7.2163554,2570.3,2570.2,3.8907478]
[1749144933019,0.32511098,2570.3,2570.2,3.8907478]
[1749144933217,0.32511098,2570.3,2570.2,4.4407478]
[1749144933218,6.84311098,2570.3,2570.2,4.4407478]
[1749144933564,6.84311098,2570.3,2570.2,5.21890371]
[1749144934131,6.84311098,2570.3,2570.2,4.4407478]
[1749144934320,6.84311098,2570.3,2570.2,3.8907478]
[1749144936659,6.84311098,2570.3,2570.2,4.4407478]
[1749144936825,6.84211098,2570.3,2570.2,4.4407478]
[1749144937157,0.32511098,2570.3,2570.2,4.4407478]
[1749144937349,6.517,2570.3,2570.2,21.32261095]
[1749144937745,6.517,2570.3,2570.2,3.8907478]
[1749144938362,6.517,2570.3,2570.1,3.89083287]
[1749144938656,6.517,2570.3,2570.0,0.487]
[1749144938862,6.517,2570.3,2570.1,3.89089918]
[1749144939155,6.517,2570.3,2569.7,19.89144955]
[1749144939156,9.84836284,2570.2,2569.7,0.487]
[1749144939322,10.50006284,2570.2,2570.0,3.89093912]
[1749144939524,0.6517,2570.2,2570.1,3.89089918]
[1749144940339,0.6517,2570.2,2570.0,3.89098451]
[1749144940537,0.6517,2570.2,2570.1,3.89089918]
[1749144940936,0.6517,2570.2,2570.0,3.89105058]
[1749144941263,0.6517,2570.2,2569.9,3.89112794]
[1749144941464,0.71687,2570.1,2569.7,3.89150484]
[1749144941664,0.71687,2570.1,2569.9,3.89116716]
[1749144942027,0.71687,2570.1,2570.0,3.89105058]
[1749144942943,0.71687,2570.1,2569.9,3.8911471]
[1749144943354,0.71687,2570.1,2570.0,3.89105058]
[1749144943555,0.71687,2570.1,2569.9,3.89113467]
[1749144944049,0.71687,2570.1,2569.8,3.89134313]
[1749144944264,0.71687,2570.1,2570.0,3.89105058]
[1749144944454,6.515,2570.1,2570.0,3.89105058]
[1749144944779,6.515,2570.1,2569.7,0.55]
[1749144945073,6.515,2570.1,2569.5,2.59926019]
[1749144945372,9.84836284,2569.9,2568.7,3.89301981]
[1749144945580,9.84836284,2569.6,2569.4,3.89182167]
[1749144945782,6.514,2569.5,2569.4,3.89182167]
[1749144946286,7.3036,2569.5,2569.1,3.89235344]
[1749144946433,7.3036,2569.5,2569.3,3.8920909]
[1749144946634,1.71519628,2569.4,2568.9,0.487]
[1749144946858,13.74054275,2569.3,2568.8,3.89285074]
[1749144947059,13.74054275,2569.3,2568.7,0.487]
[1749144947060,9.84836284,2569.3,2568.7,4.37997636]
[1749144947264,9.84836284,2569.3,2569.0,3.89255426]
[1749144947433,0.98483628,2569.2,2569.0,3.89255426]
[1749144947632,6.514,2569.1,2568.9,3.89261081]
[1749144948066,6.514,2569.1,2569.0,3.8925652]
[1749144948974,6.514,2569.1,2568.9,3.89261081]
[1749144948975,0.98483628,2569.2,2569.1,3.89241368]